[Event "III Menorca Open-A 2024"]
[Site "Ciutadella Menorca"]
[Date "2024.04.02"]
[Round "1.21"]
[White "Nasuta, Grzegorz"]
[Black "Mannion, Stephen R"]
[Result "1-0"]
[ECO "C54"]
[WhiteElo "2552"]
[BlackElo "2166"]
[Annotator "RC"]
[PlyCount "79"]
[EventDate "2024.04.02"]
[EventType "swiss"]
[EventCountry "ESP"]
[SourceTitle "playchess.com"]
[Source "ChessBase"]
[SourceQuality "1"]
[TimeControl "5400+30"]

1. e4 {[%emt 0:00:02]} e5 {[%emt 0:00:05]} 2. Nf3 {[%emt 0:00:12]} Nc6 {[%emt 0:00:06]} 3. Bc4 {[%emt 0:00:49]} Bc5 {[%emt 0:00:07]} 4. d3 {[%emt 0:02:17]} Nf6 {[%emt 0:00:32]} 5. O-O {[%emt 0:00:49]} d6 {[%emt 0:00:57]} 6. c3 {[%emt 0:00:09]} O-O {[%emt 0:00:47]} 7. h3 {[%emt 0:03:51]} h6 {[%emt 0:00:31]} 8. Re1 {[%emt 0:00:14]} a5 {[%emt 0:00:24]} 9. Nbd2 {[%emt 0:08:23]} Be6 {[%emt 0:01:02]} 10. Bb5 {[%emt 0:00:13]} Qb8 {[%emt 0:01:01]} 11. Bxc6 {[%emt 0:08:55]} bxc6 {[%emt 0:00:07]} 12. d4 {[%emt 0:00:06]} exd4 {[%emt 0:01:03]} 13. cxd4 {[%emt 0:00:12]} Bb6 {[%emt 0:23:00]} 14. Qc2 {[%emt 0:03:08]} Qa7 {[%emt 0:05:00]} 15. b3 {[%emt 0:15:13]} a4 {[%emt 0:15:55]} 16. Bb2 {[%emt 0:00:10]} a3 {[%emt 0:00:33]} 17. Bc3 {[%emt 0:00:06]} Rfe8 {[%emt 0:03:15]} 18. Rac1 {[%emt 0:17:29]} Nh5 {[%emt 0:23:14]} 19. Nf1 {[%emt 0:06:14]} d5 {[%emt 0:02:02]} 20. e5 {[%emt 0:00:05]} g6 {[%emt 0:01:27]} 21. Qd2 {[%emt 0:01:42]} Kh7 {[%emt 0:00:20]} 22. Qe3 {[%emt 0:09:10]} f5 {[%emt 0:06:20]} 23. exf6 {[%emt 0:02:35]} Nxf6 {[%emt 0:00:43]} 24. Bd2 {[%emt 0:01:59]} Ng8 {[%emt 0:00:12]} 25. Qf4 {[%emt 0:01:34]} g5 {[%emt 0:03:55]} 26. Nxg5+ {[%emt 0:04:03]} hxg5 {[%emt 0:00:03]} 27. Qxg5 {[%emt 0:00:09]} Bxd4 {[%emt 0:01:51]} 28. Qh4+ {[%emt 0:01:14]} Kg6 {[%emt 0:01:06]} 29. Be3 {[%emt 0:00:23]} Bxe3 {[%emt 0:01:56]} 30. Rxe3 {[%emt 0:00:07]} Nf6 {[%emt 0:00:09]} 31. Rg3+ {[%emt 0:03:21]} Kf7 {[%emt 0:00:04]} 32. Rf3 {[%emt 0:00:10]} Ke7 {[%emt 0:00:45]} 33. Rxf6 {[%emt 0:04:32]} Kd7 {[%emt 0:00:02]} 34. Nd2 {[%emt 0:00:16]} Rh8 {[%emt 0:02:12]} 35. Qf4 {[%emt 0:00:06]} Rag8 {[%emt 0:00:16]} 36. Nf3 {[%emt 0:02:17]} Bxh3 {[%emt 0:04:11]} 37. Ng5 {[%emt 0:00:05]} Bxg2 {[%emt 0:03:03]} 38. Qf5+ {[%emt 0:00:20]} Kd8 {[%emt 0:00:42]} 39. Nf7+ {[%emt 0:00:09]} Ke8 {[%emt 0:00:27]} 40. Qe6+ {[%emt 0:00:07]} 1-0

[Event "III Menorca Open-A 2024"]
[Site "Ciutadella Menorca"]
[Date "2024.04.02"]
[Round "1.22"]
[White "Cramling Bellon, Anna"]
[Black "Xiao, Tong(Qd)"]
[Result "0-1"]
[ECO "E16"]
[WhiteElo "2115"]
[BlackElo "2484"]
[Annotator "TA"]
[PlyCount "86"]
[EventDate "2024.04.02"]
[EventType "swiss"]
[EventCountry "ESP"]
[SourceTitle "playchess.com"]
[Source "ChessBase"]
[SourceQuality "1"]
[TimeControl "5400+30"]

{[%evp 21,86,18,24,11,9,11,54,21,47,6,126,27,66,36,37,39,45,22,10,16,1,14,40,3,41,-106,-102,-106,-106,-89,-109,-106,-99,-103,-99,-100,-84,-138,-30,-17,0,-10,0,-149,-189,-203,-218,-202,-212,-201,-167,-167,-166,-358,-364,-413,-259,-263,-267,-5357,-5327,-29987,-29988,-29988,-29989,-29989,-29990]} 1. d4 {[%emt 0:00:06]} Nf6 {[%emt 0:00:08]} 2. c4 {[%emt 0:00:10]} e6 {[%emt 0:00:16]} 3. Nf3 {[%emt 0:03:36]} b6 {[%emt 0:01:05]} 4. g3 {[%emt 0:03:14]} Bb4+ {[%emt 0:01:18]} 5. Bd2 {[%emt 0:04:31]} c5 {[%emt 0:01:37]} 6. Bxb4 {[%emt 0:05:01]} cxb4 {[%emt 0:00:04]} 7. Bg2 {[%emt 0:01:27]} Bb7 {[%emt 0:00:40]} 8. O-O {[%emt 0:01:07]} O-O {[%emt 0:00:17]} 9. Nbd2 {[%emt 0:03:42]} d6 {[%emt 0:00:47]} 10. Qb3 {[%emt 0:03:26]} a5 {[%emt 0:00:14]} 11. a3 {[%emt 0:07:15]} Na6 {[%emt 0:00:07]} 12. Rfe1 {[%emt 0:03:44]} Qe7 {[%emt 0:00:15]} 13. e4 {[%emt 0:04:39][%cal Be2e4,Be4e5][%mdl 32]} Nd7 {[%emt 0:07:30]} 14. e5 {[%emt 0:09:16] White is slightly better.} Rfc8 {[%emt 0:05:24]} 15. Qe3 {[%emt 0:08:00]} Ra7 {[%emt 0:15:04]} (15... dxe5 $11 16. Nxe5 Bxg2 17. Kxg2 Nxe5 18. Qxe5 bxa3 19. bxa3 h6) 16. Qf4 {[%emt 0:13:13]} (16. exd6 $16 Qxd6 17. d5 bxa3 18. bxa3) 16... d5 {[%emt 0:02:01]} 17. Rec1 {[%emt 0:01:49]} Nf8 {[%emt 0:06:59]} 18. h4 {[%emt 0:02:12]} Ba8 {[%emt 0:01:18]} 19. cxd5 {[%emt 0:05:48]} Rxc1+ {[%emt 0:00:04]} 20. Rxc1 {[%emt 0:00:04]} Bxd5 {[%emt 0:00:33]} 21. Ng5 {[%emt 0:12:35]} bxa3 {[%emt 0:05:09]} 22. bxa3 {[%emt 0:00:06]} Rc7 {[%emt 0:00:17] Prevents Nc4} (22... Qxa3 {with more complications.} 23. Rc8 Bxg2 24. Kxg2 Qe7) 23. Nde4 {[%emt 0:02:50]} (23. Rb1 $14 {stays ahead.}) 23... h6 $17 {[%emt 0:05:23]} 24. Nh3 {[%emt 0:00:03]} Bxe4 $1 {[%emt 0:00:53]} ({But not} 24... Qxa3 $6 25. Rxc7 Nxc7 26. Nd6 $11) 25. Rxc7 {[%emt 0:01:53]} Nxc7 {[%emt 0:00:06]} 26. Qxe4 {[%emt 0:00:05]} Qxa3 {[%emt 0:10:47]} 27. Qc6 {[%emt 0:00:08][%csl LRb6,LRc7] [#]} Nd5 {[%emt 0:00:07][%mdl 512]} 28. Bxd5 {[%emt 0:02:43]} exd5 {[%emt 0:00:44]} 29. Qxd5 {[%emt 0:00:38][%mdl 4096] Endgame. [#] KQN-KQN} (29. Nf4 $142) 29... a4 {[%emt 0:00:27]} (29... Ne6 $1 $17 {...Qa1+ is the strong threat.} 30. Qa8+ Qf8) 30. Nf4 $11 {[%emt 0:00:21]} Qe7 {[%emt 0:02:41]} 31. Qc4 {[%emt 0:00:57]} a3 {[%emt 0:00:55] Hoping for ...Qa7.} 32. Nd3 {[%emt 0:00:26]} (32. Qa4 $11 {keeps the balance.}) 32... Qa7 $36 {[%emt 0:02:06][%mdl 2048] Strongly threatening ...a2. Black is on the roll.} 33. Qa2 {[%emt 0:01:10]} Qa4 {[%emt 0:00:11]} 34. Kh2 {[%emt 0:00:30]} b5 {[%emt 0:00:16][%cal Ob5b4] And now ...b4! would win.} (34... Qxd4 35. Qxa3 Qe4 36. f4 $11) 35. d5 {[%emt 0:00:27]} b4 {[%emt 0:06:35] aiming for ...b3.} 36. Nc1 {[%emt 0:00:04] [#]} Qa6 {[%emt 0:03:24]} ({Don't play} 36... Nd7 37. e6 fxe6 38. dxe6 $15) 37. d6 $2 {[%emt 0:00:48]} (37. Qb3 {was worth a try.}) 37... Qc6 $19 {[%emt 0:00:51]} 38. Nb3 {[%emt 0:00:50]} Ne6 {[%emt 0:00:43] White must now prevent ...Qc4.} 39. Qd2 {[%emt 0:00:24]} Qc4 {[%emt 0:01:03]} 40. Nc1 {[%emt 0:00:40]} (40. Qd1) 40... b3 {[%emt 0:00:26]} 41. d7 {[%emt 0:00:23]} b2 {[%emt 0:00:13] Black mates.} 42. d8=Q+ {[%emt 0:00:36]} Nxd8 {[%emt 0:00:06]} 43. Qxd8+ {[%emt 0:00:08]} Kh7 {[%emt 0:22:56] Weighted Error Value: White=0.67/Black=0.28 (precise) .  Mistake:       	White=6     	Black=2      Inaccurate:     	White=5     	Black=6      OK:         	White=5     	Black=10     Best:        	White=7     	Black=4      Strong:       	---       	Black=1} 0-1

[Event "III Menorca Open-A 2024"]
[Site "Ciutadella Menorca"]
[Date "2024.04.02"]
[Round "1.23"]
[White "Prado, Alexandra"]
[Black "Nandhidhaa, P V"]
[Result "0-1"]
[ECO "B23"]
[WhiteElo "1877"]
[BlackElo "2305"]
[Annotator "RC"]
[PlyCount "72"]
[EventDate "2024.04.02"]
[EventType "swiss"]
[EventCountry "ESP"]
[SourceTitle "playchess.com"]
[Source "ChessBase"]
[SourceQuality "1"]
[TimeControl "5400+30"]

1. e4 {[%emt 0:01:42]} c5 {[%emt 0:00:14]} 2. Nc3 {[%emt 0:00:56]} Nc6 {[%emt 0:00:37]} 3. f4 {[%emt 0:01:11]} g6 {[%emt 0:00:49]} 4. Nf3 {[%emt 0:00:14]} Bg7 {[%emt 0:00:19]} 5. Bc4 {[%emt 0:00:48]} d6 {[%emt 0:02:28]} 6. O-O {[%emt 0:01:27]} e6 {[%emt 0:00:41]} 7. d3 {[%emt 0:02:41]} Nge7 {[%emt 0:01:51]} 8. Bd2 {[%emt 0:16:32]} d5 {[%emt 0:06:45]} 9. Bb5 {[%emt 0:00:15]} O-O {[%emt 0:01:34]} 10. Bxc6 {[%emt 0:00:24]} Nxc6 {[%emt 0:01:12]} 11. Qe1 {[%emt 0:13:26]} Nd4 {[%emt 0:03:23]} 12. Rc1 {[%emt 0:05:55]} b6 {[%emt 0:02:31]} 13. Kh1 {[%emt 0:15:30]} Bb7 {[%emt 0:03:19]} 14. e5 {[%emt 0:01:14]} Nxf3 {[%emt 0:04:40]} 15. Rxf3 {[%emt 0:05:08]} f6 {[%emt 0:01:41]} 16. exf6 {[%emt 0:07:33]} Qxf6 {[%emt 0:00:57]} 17. Qe2 {[%emt 0:01:13]} e5 {[%emt 0:02:11]} 18. fxe5 {[%emt 0:03:28]} Qxe5 {[%emt 0:00:55]} 19. Re3 {[%emt 0:00:48]} Qf5 {[%emt 0:02:09]} 20. Re7 {[%emt 0:01:29]} Rf7 {[%emt 0:01:46]} 21. Rxf7 {[%emt 0:06:53]} Qxf7 {[%emt 0:00:10]} 22. Rf1 {[%emt 0:00:18]} Qd7 {[%emt 0:00:46]} 23. Re1 {[%emt 0:01:52]} Rf8 {[%emt 0:01:08]} 24. Bg5 {[%emt 0:04:54]} Qf5 {[%emt 0:03:27]} 25. Bh4 {[%emt 0:03:25]} Bc6 {[%emt 0:02:42]} 26. Bg3 {[%emt 0:00:52]} Bd4 {[%emt 0:02:36]} 27. h3 {[%emt 0:01:10]} Bd7 {[%emt 0:04:54]} 28. Nd1 {[%emt 0:02:01]} Qg5 {[%emt 0:05:10]} 29. Kh2 {[%emt 0:00:54]} Rf7 {[%emt 0:03:48]} 30. c3 {[%emt 0:00:23]} Bg7 {[%emt 0:00:47]} 31. Nf2 {[%emt 0:00:33]} h5 {[%emt 0:01:26]} 32. Bd6 {[%emt 0:00:48]} Qf6 {[%emt 0:00:47]} 33. Bg3 {[%emt 0:00:19]} h4 {[%emt 0:00:28]} 34. Bb8 {[%emt 0:00:42]} Qxf2 {[%emt 0:00:31]} 35. Bxa7 {[%emt 0:00:25]} Qg3+ {[%emt 0:00:20]} 36. Kh1 {[%emt 0:00:16]} Rf2 {[%emt 0:00:45]} 0-1

[Event "III Menorca Open-A 2024"]
[Site "Ciutadella Menorca"]
[Date "2024.04.02"]
[Round "1.24"]
[White "Saine, Zachary"]
[Black "Baskin, Robert"]
[Result "0-1"]
[ECO "B90"]
[WhiteElo "2010"]
[BlackElo "2461"]
[Annotator "RC"]
[PlyCount "84"]
[EventDate "2024.04.02"]
[EventType "swiss"]
[EventCountry "ESP"]
[SourceTitle "playchess.com"]
[Source "ChessBase"]
[SourceQuality "1"]
[TimeControl "5400+30"]

1. e4 {[%emt 0:00:17]} c5 {[%emt 0:00:40]} 2. Nf3 {[%emt 0:00:25]} d6 {[%emt 0:00:13]} 3. d4 {[%emt 0:00:05]} cxd4 {[%emt 0:00:04]} 4. Nxd4 {[%emt 0:00:06]} Nf6 {[%emt 0:00:07]} 5. Nc3 {[%emt 0:00:05]} a6 {[%emt 0:00:22]} 6. f3 {[%emt 0:00:07]} e5 {[%emt 0:00:47]} 7. Nb3 {[%emt 0:00:06]} Be6 {[%emt 0:00:08]} 8. Be3 {[%emt 0:00:06]} h5 {[%emt 0:00:37]} 9. Qd2 {[%emt 0:00:06]} Nbd7 {[%emt 0:00:47]} 10. Be2 {[%emt 0:01:23]} Rc8 {[%emt 0:01:30]} 11. O-O {[%emt 0:07:27]} Be7 {[%emt 0:03:02]} 12. Rac1 {[%emt 0:06:54]} Nb6 {[%emt 0:04:40]} 13. Na5 {[%emt 0:06:46]} Qc7 {[%emt 0:01:48]} 14. Rfd1 {[%emt 0:03:37]} d5 {[%emt 0:02:20]} 15. Nxd5 {[%emt 0:03:11]} Nbxd5 {[%emt 0:00:46]} 16. exd5 {[%emt 0:00:07]} Nxd5 {[%emt 0:00:20]} 17. Nb3 {[%emt 0:04:29]} Nxe3 {[%emt 0:05:51]} 18. Qxe3 {[%emt 0:00:04]} O-O {[%emt 0:01:36]} 19. Kh1 {[%emt 0:03:33]} Rfd8 {[%emt 0:08:38]} 20. Rxd8+ {[%emt 0:08:24]} Rxd8 {[%emt 0:00:19]} 21. Bd3 {[%emt 0:01:28]} f5 {[%emt 0:16:50]} 22. Re1 {[%emt 0:03:52]} Bf6 {[%emt 0:02:03]} 23. Nc5 {[%emt 0:04:38]} Bc8 {[%emt 0:00:14]} 24. b4 {[%emt 0:26:15]} Kh7 {[%emt 0:07:18]} 25. g4 {[%emt 0:05:00]} hxg4 {[%emt 0:15:49]} 26. fxg4 {[%emt 0:00:04]} b6 {[%emt 0:00:10]} 27. Qh3+ {[%emt 0:03:48]} Kg8 {[%emt 0:00:46]} 28. Bc4+ {[%emt 0:10:16]} Kf8 {[%emt 0:00:05]} 29. g5 {[%emt 0:00:22]} Qc6+ {[%emt 0:02:10]} 30. Kg1 {[%emt 0:00:22]} bxc5 {[%emt 0:00:38]} 31. Qh5 {[%emt 0:01:04]} Qe8 {[%emt 0:25:22]} 32. Qh7 {[%emt 0:01:18]} Ke7 {[%emt 0:00:00]} 33. bxc5 {[%emt 0:00:36]} Rd4 {[%emt 0:00:00]} 34. gxf6+ {[%emt 0:00:28]} Kxf6 {[%emt 0:00:00]} 35. Bf1 {[%emt 0:00:35]} Rg4+ {[%emt 0:00:00]} 36. Kf2 {[%emt 0:00:06]} Qc6 {[%emt 0:00:00]} 37. Ke2 {[%emt 0:00:54]} Qb5+ {[%emt 0:00:00]} 38. Kd2 {[%emt 0:00:22]} Qb4+ {[%emt 0:00:00]} 39. Kd1 {[%emt 0:00:32]} Bb7 {[%emt 0:00:00]} 40. Qh8 {[%emt 0:00:37]} Bf3+ {[%emt 0:00:00]} 41. Re2 {[%emt 0:00:32]} Rd4+ {[%emt 0:00:00]} 42. Kc1 {[%emt 0:00:17]} Qa3+ {[%emt 0:00:00]} 0-1

[Event "III Menorca Open-A 2024"]
[Site "Ciutadella Menorca"]
[Date "2024.04.03"]
[Round "2.1"]
[White "Erigaisi Arjun"]
[Black "Alexakis, Dimitris"]
[Result "1/2-1/2"]
[ECO "E20"]
[WhiteElo "2748"]
[BlackElo "2443"]
[Annotator "RC"]
[PlyCount "210"]
[EventDate "2024.04.02"]
[EventType "swiss"]
[EventCountry "ESP"]
[SourceTitle "playchess.com"]
[Source "ChessBase"]
[SourceQuality "1"]
[TimeControl "5400+30"]

1. d4 {[%emt 0:08:07]} Nf6 {[%emt 0:00:07]} 2. c4 {[%emt 0:00:06]} e6 {[%emt 0:00:06]} 3. Nc3 {[%emt 0:00:05]} Bb4 {[%emt 0:00:04]} 4. f3 {[%emt 0:00:05]} c5 {[%emt 0:00:09]} 5. a3 {[%emt 0:00:05]} Ba5 {[%emt 0:11:30]} 6. dxc5 {[%emt 0:00:17]} Bxc3+ {[%emt 0:00:41]} 7. bxc3 {[%emt 0:00:06]} Qa5 {[%emt 0:09:59]} 8. e4 {[%emt 0:00:19]} O-O {[%emt 0:08:27]} 9. Ne2 {[%emt 0:00:21]} Qxc5 {[%emt 0:03:27]} 10. a4 {[%emt 0:00:07]} Qxc4 {[%emt 0:07:05]} 11. Ba3 {[%emt 0:02:18]} d6 {[%emt 0:05:44]} 12. Qxd6 {[%emt 0:04:01]} Re8 {[%emt 0:00:51]} 13. Bb4 {[%emt 0:09:26]} Qb3 {[%emt 0:07:05]} 14. Nd4 {[%emt 0:28:15]} Qb2 {[%emt 0:00:34]} 15. Rd1 {[%emt 0:00:05]} a6 {[%emt 0:12:54]} 16. Bc4 {[%emt 0:20:56]} a5 {[%emt 0:08:25]} 17. Bb5 {[%emt 0:00:07]} axb4 {[%emt 0:17:00]} 18. Bxe8 {[%emt 0:00:15]} Nxe8 {[%emt 0:00:03]} 19. Qd8 {[%emt 0:03:22]} Bd7 {[%emt 0:02:43]} 20. O-O {[%emt 0:01:07]} bxc3 {[%emt 0:00:23]} 21. h4 {[%emt 0:05:54]} Kf8 {[%emt 0:02:10]} 22. Rb1 {[%emt 0:02:16]} Qd2 {[%emt 0:00:07]} 23. Qb6 {[%emt 0:00:05]} Nc6 {[%emt 0:01:38]} 24. Nb3 {[%emt 0:01:13]} Qf4 {[%emt 0:00:04]} 25. a5 {[%emt 0:03:10]} Qc7 {[%emt 0:00:47]} 26. Qc5+ {[%emt 0:00:14]} Ne7 {[%emt 0:00:44]} 27. Rfc1 {[%emt 0:00:20]} Rc8 {[%emt 0:00:08]} 28. Rxc3 {[%emt 0:00:35]} Qxc5+ {[%emt 0:00:52]} 29. Nxc5 {[%emt 0:00:12]} Bc6 {[%emt 0:00:02]} 30. Rd3 {[%emt 0:00:31]} Ra8 {[%emt 0:00:42]} 31. Nxb7 {[%emt 0:00:32]} Ra7 {[%emt 0:00:17]} 32. Nd8 {[%emt 0:01:48]} Rxa5 {[%emt 0:00:08]} 33. Rb8 {[%emt 0:00:04]} Ra8 {[%emt 0:01:14]} 34. Rxa8 {[%emt 0:01:22]} Bxa8 {[%emt 0:00:01]} 35. Rc3 {[%emt 0:00:02]} Nf6 {[%emt 0:01:10]} 36. Ra3 {[%emt 0:00:59]} Bc6 {[%emt 0:00:01]} 37. Ra6 {[%emt 0:00:20]} Bd7 {[%emt 0:00:54]} 38. g4 {[%emt 0:01:27]} Ke8 {[%emt 0:00:27]} 39. Nb7 {[%emt 0:00:24]} Nc8 {[%emt 0:00:30]} 40. g5 {[%emt 0:01:59]} Nh5 {[%emt 0:00:23]} 41. Kf2 {[%emt 0:00:06]} Ke7 {[%emt 0:00:20]} 42. Ke3 {[%emt 0:00:21]} e5 {[%emt 0:00:13]} 43. Nc5 {[%emt 0:01:08]} Nf4 {[%emt 0:00:14]} 44. Ra5 {[%emt 0:00:39]} f6 {[%emt 0:00:47]} 45. Kf2 {[%emt 0:00:57]} Ne6 {[%emt 0:00:35]} 46. Nxe6 {[%emt 0:01:04]} Kxe6 {[%emt 0:00:38]} 47. Ra8 {[%emt 0:00:05]} Kf7 {[%emt 0:00:56]} 48. gxf6 {[%emt 0:00:14]} Kxf6 {[%emt 0:00:30]} 49. Kg3 {[%emt 0:00:19]} Ne7 {[%emt 0:00:21]} 50. Rh8 {[%emt 0:01:52]} h6 {[%emt 0:00:41]} 51. Rf8+ {[%emt 0:00:01]} Ke6 {[%emt 0:00:10]} 52. Ra8 {[%emt 0:00:41]} Ng6 {[%emt 0:00:36]} 53. Ra6+ {[%emt 0:00:06]} Kf7 {[%emt 0:00:01]} 54. Ra7 {[%emt 0:00:01]} Ke7 {[%emt 0:00:15]} 55. Rb7 {[%emt 0:00:18]} Nf8 {[%emt 0:00:45]} 56. Ra7 {[%emt 0:01:29]} Kf6 {[%emt 0:00:21]} 57. Ra6+ {[%emt 0:00:58]} Be6 {[%emt 0:00:03]} 58. Ra8 {[%emt 0:00:06]} Ng6 {[%emt 0:00:09]} 59. Ra6 {[%emt 0:00:04]} Nf4 {[%emt 0:00:07]} 60. Ra5 {[%emt 0:00:04]} Ng6 {[%emt 0:02:29]} 61. Ra6 {[%emt 0:00:11]} Nh8 {[%emt 0:00:12]} 62. Rb6 {[%emt 0:01:11]} Nf7 {[%emt 0:00:02]} 63. Ra6 {[%emt 0:00:05]} Ke7 {[%emt 0:01:21]} 64. Ra7+ {[%emt 0:00:27]} Kf6 {[%emt 0:00:01]} 65. Ra6 {[%emt 0:00:06]} h5 {[%emt 0:00:32]} 66. f4 {[%emt 0:04:32]} exf4+ {[%emt 0:00:44]} 67. Kxf4 {[%emt 0:00:01]} Ne5 {[%emt 0:00:11]} 68. Ra5 {[%emt 0:00:05]} Ng6+ {[%emt 0:00:09]} 69. Kg3 {[%emt 0:00:04]} Bg4 {[%emt 0:00:04]} 70. Ra6+ {[%emt 0:00:04]} Kf7 {[%emt 0:00:06]} 71. Ra7+ {[%emt 0:00:13]} Kg8 {[%emt 0:00:12]} 72. Ra8+ {[%emt 0:00:26]} Kh7 {[%emt 0:00:02]} 73. Ra6 {[%emt 0:00:19]} Bd1 {[%emt 0:02:33]} 74. Ra5 {[%emt 0:00:12]} Kh6 {[%emt 0:00:58]} 75. Rc5 {[%emt 0:00:02]} Bg4 {[%emt 0:00:22]} 76. Rc6 {[%emt 0:00:06]} Kh7 {[%emt 0:00:13]} 77. Rc5 {[%emt 0:00:06]} Nf8 {[%emt 0:00:09]} 78. Ra5 {[%emt 0:00:10]} Ne6 {[%emt 0:00:10]} 79. Rb5 {[%emt 0:00:29]} Kg6 {[%emt 0:00:21]} 80. Rd5 {[%emt 0:00:28]} Kf6 {[%emt 0:00:11]} 81. Ra5 {[%emt 0:00:05]} Ke7 {[%emt 0:01:09]} 82. Rd5 {[%emt 0:00:23]} Nc7 {[%emt 0:01:15]} 83. Rg5 {[%emt 0:00:06]} Kf6 {[%emt 0:00:34]} 84. Rc5 {[%emt 0:00:08]} Ne6 {[%emt 0:00:13]} 85. Ra5 {[%emt 0:00:02]} g6 {[%emt 0:00:34]} 86. Rd5 {[%emt 0:00:28]} Be2 {[%emt 0:00:25]} 87. Ra5 {[%emt 0:01:09]} Bd3 {[%emt 0:00:47]} 88. Kf3 {[%emt 0:00:05]} Bc2 {[%emt 0:00:26]} 89. Ke3 {[%emt 0:00:45]} Bb3 {[%emt 0:00:18]} 90. Kf3 {[%emt 0:00:27]} Bc4 {[%emt 0:00:48]} 91. Ke3 {[%emt 0:00:25]} Ke7 {[%emt 0:00:30]} 92. Ra4 {[%emt 0:00:11]} Bb5 {[%emt 0:00:12]} 93. Ra5 {[%emt 0:00:50]} Bc6 {[%emt 0:00:08]} 94. e5 {[%emt 0:00:29]} Ng7 {[%emt 0:01:16]} 95. Kf4 {[%emt 0:01:42]} Ne6+ {[%emt 0:00:01]} 96. Ke3 {[%emt 0:00:02]} Be8 {[%emt 0:01:00]} 97. Ra7+ {[%emt 0:00:22]} Bd7 {[%emt 0:00:10]} 98. Ra6 {[%emt 0:00:23]} Nf8 {[%emt 0:00:38]} 99. Ra7 {[%emt 0:01:18]} Ke6 {[%emt 0:00:35]} 100. Ra8 {[%emt 0:00:28]} Ke7 {[%emt 0:00:24]} 101. Ra7 {[%emt 0:00:08]} Ne6 {[%emt 0:00:22]} 102. Ra6 {[%emt 0:00:01]} Kd8 {[%emt 0:00:38]} 103. Ra8+ {[%emt 0:00:17]} Bc8 {[%emt 0:00:25]} 104. Ra7 {[%emt 0:00:06]} Bd7 {[%emt 0:00:47]} 105. Ra8+ {[%emt 0:00:06]} Ke7 {[%emt 0:00:05]} 1/2-1/2

[Event "III Menorca Open-A 2024"]
[Site "Ciutadella Menorca"]
[Date "2024.04.03"]
[Round "2.2"]
[White "Deuer, Marius"]
[Black "Nihal Sarin"]
[Result "0-1"]
[ECO "D35"]
[WhiteElo "2439"]
[BlackElo "2698"]
[Annotator "TA"]
[PlyCount "136"]
[EventDate "2024.04.02"]
[EventType "swiss"]
[EventCountry "ESP"]
[SourceTitle "playchess.com"]
[Source "ChessBase"]
[SourceQuality "1"]
[TimeControl "5400+30"]

{[%evp 43,136,0,0,0,12,0,22,16,24,17,31,28,18,23,21,15,20,16,45,20,21,16,27,20,25,25,33,22,21,0,0,0,0,0,0,0,9,11,14,14,28,25,53,10,14,12,12,0,18,0,0,0,0,0,0,0,0,0,0,-11,-15,-109,-112,-106,-129,-248,-236,-455,-454,-443,-448,-483,-479,-391,-486,-512,-535,-535,-518,-695,-689,-929,-883,-738,-609,-1130,-893,-12848,-5485,-12841,-5401,-29939,-12849,-29988,-29985]} 1. d4 {[%emt 0:00:03]} Nf6 {[%emt 0:01:38]} 2. c4 {[%emt 0:00:15]} e6 {[%emt 0:00:25]} 3. Nc3 {[%emt 0:00:08]} d5 {[%emt 0:00:59]} 4. cxd5 {[%emt 0:00:14]} exd5 {[%emt 0:00:08]} 5. Bg5 {[%emt 0:00:08]} Be7 {[%emt 0:00:12]} 6. e3 {[%emt 0:00:21]} h6 {[%emt 0:01:59]} 7. Bh4 {[%emt 0:00:08]} Bg4 {[%emt 0:00:07] D35: Queen's Gambit Declined: Exchange Variation.} 8. f3 {[%emt 0:15:05]} Be6 {[%emt 0:00:20]} 9. Bd3 {[%emt 0:00:52]} c5 {[%emt 0:01:45]} 10. dxc5 {[%emt 0:01:18]} Bxc5 {[%emt 0:02:06]} 11. Bf2 {[%emt 0:00:13]} Nc6 {[%emt 0:01:46]} 12. Nge2 {[%emt 0:01:11]} O-O {[%emt 0:00:19]} 13. O-O {[%emt 0:03:23]} a6 {[%emt 0:02:55]} 14. Rc1 {[%emt 0:04:16]} Ba7 {[%emt 0:04:54]} 15. Qd2 $146 {[%emt 0:05:51]} ({Predecessor:} 15. Nd4 Rc8 16. Qd2 Re8 17. Nce2 Ne5 18. Rxc8 Bxc8 19. b3 Bd7 {½-½ Juksta,K (2392)-Quintiliano Pinto,R (2506) US Masters op 2023 (6)}) 15... Re8 {[%emt 0:00:48]} 16. Nd4 {[%emt 0:04:23]} Nxd4 {[%emt 0:02:35]} 17. exd4 {[%emt 0:00:14]} Qd6 {[%emt 0:02:26]} 18. Na4 {[%emt 0:07:59]} Re7 {[%emt 0:21:25]} 19. Rfe1 {[%emt 0:05:57]} Rae8 {[%emt 0:05:17]} 20. Kh1 {[%emt 0:03:56]} Bb8 {[%emt 0:11:52]} 21. Bg3 {[%emt 0:01:26]} Qd8 {[%emt 0:00:07]} 22. Bh4 {[%emt 0:02:59]} Qd6 {[%emt 0:02:11]} 23. Bg3 {[%emt 0:00:05]} Qd8 {[%emt 0:00:05]} 24. Bh4 {[%emt 0:00:03]} Bd7 {[%emt 0:13:09]} 25. Rxe7 {[%emt 0:09:43]} Qxe7 {[%emt 0:00:07]} 26. Nc5 {[%emt 0:01:44]} Qd6 {[%emt 0:04:01]} 27. Bg3 {[%emt 0:04:02]} (27. Nxb7 $2 Qxh2#) 27... Qb6 $1 {[%emt 0:00:57]} 28. Bxb8 {[%emt 0:00:39]} Rxb8 {[%emt 0:00:04]} 29. Re1 {[%emt 0:01:35]} Qd6 {[%emt 0:00:20]} 30. g3 {[%emt 0:04:32]} Bh3 {[%emt 0:04:44]} 31. Kg1 {[%emt 0:05:22]} a5 {[%emt 0:01:29]} 32. Qxa5 {[%emt 0:07:14]} b6 {[%emt 0:00:13]} 33. Qa6 {[%emt 0:00:02]} h5 {[%emt 0:01:43]} 34. Nb3 {[%emt 0:02:10]} g6 {[%emt 0:02:29]} 35. Qa7 {[%emt 0:01:49]} Bd7 {[%emt 0:01:16]} 36. Qa3 {[%emt 0:02:37]} Qxa3 {[%emt 0:00:12]} 37. bxa3 {[%emt 0:00:06]} Ra8 {[%emt 0:00:02]} 38. Rb1 {[%emt 0:00:08]} Rxa3 {[%emt 0:00:11]} 39. Nc1 {[%emt 0:00:45]} Rc3 {[%emt 0:08:32]} 40. Kf2 {[%emt 0:01:03]} Kg7 {[%emt 0:02:29]} 41. Ke2 {[%emt 0:01:06]} Rc6 {[%emt 0:01:48]} 42. Kd2 {[%emt 0:00:10]} Rd6 {[%emt 0:00:18]} 43. h4 {[%emt 0:03:20]} Ng8 {[%emt 0:00:04]} 44. Ne2 {[%emt 0:01:00]} Ne7 {[%emt 0:00:15]} 45. Nc3 {[%emt 0:00:54]} Kf8 {[%emt 0:00:21]} 46. Bb5 {[%emt 0:01:53]} Nf5 {[%emt 0:00:55]} 47. Bxd7 {[%emt 0:01:03]} Rxd7 {[%emt 0:00:01]} 48. Rxb6 {[%emt 0:00:21]} Nxd4 {[%emt 0:00:32]} 49. Ke3 {[%emt 0:00:25]} Nf5+ {[%emt 0:00:07]} 50. Kf4 {[%emt 0:00:34]} Kg7 {[%emt 0:01:41]} 51. a4 {[%emt 0:00:28]} Rc7 {[%emt 0:00:21]} 52. Nxd5 {[%emt 0:00:43]} (52. Nb5 $1 $11 Rc4+ 53. Ke5) 52... Rc4+ $17 {[%emt 0:00:06]} 53. Ke5 {[%emt 0:00:30]} Rxa4 {[%emt 0:00:06]} 54. g4 {[%emt 0:00:04]} (54. Nc7 $17) 54... Nxh4 $19 {[%emt 0:01:07]} 55. gxh5 $2 {[%emt 0:00:30]} (55. Rb3) 55... Nxf3+ $19 {[%emt 0:00:05]} 56. Kd6 {[%emt 0:00:04]} gxh5 {[%emt 0:00:08]} 57. Rb3 {[%emt 0:00:06]} Ng5 {[%emt 0:01:26]} 58. Ke5 {[%emt 0:00:59]} Ra5 {[%emt 0:00:08]} 59. Rd3 {[%emt 0:00:21]} Kg6 {[%emt 0:00:16]} 60. Kf4 {[%emt 0:00:38]} Ra4+ {[%emt 0:00:07]} 61. Kg3 {[%emt 0:00:10]} h4+ {[%emt 0:00:16]} 62. Kh2 {[%emt 0:01:12]} Ra2+ {[%emt 0:00:37]} 63. Kh1 {[%emt 0:00:07]} Ne4 {[%emt 0:01:36]} 64. Rb3 {[%emt 0:00:42]} Kg5 {[%emt 0:00:25]} 65. Nc3 {[%emt 0:00:38]} Ng3+ {[%emt 0:00:06]} 66. Kg1 {[%emt 0:00:04]} Rc2 {[%emt 0:02:21]} (66... Rd2 $142 67. Na4 Kg4 68. Rb4+ Kh3) 67. Nd5 {[%emt 0:00:15]} Rd2 {[%emt 0:00:00]} 68. Rb5 {[%emt 0:00:26]} f5 {[%emt 0:00:00]} 0-1